[Event "Dalheimers Hus Rapid Open"]
[Site "Dalheimers Hus, Slottsskogsgatan 12, Gothenburg, Sweden"]
[Date "2024.04.14"]
[Round "5.8"]
[White "Lejhall, Jens"]
[Black "Rydstrom, Tom"]
[Result "0-1"]
[TimeControl "15 minutes + 5 seconds per move from move one."]
[BlackTitle "FM"]
[WhiteFideId "1708864"]
[BlackFideId "1714830"]
[WhiteElo "1971"]
[BlackElo "2313"]

1. c4 {[%clk 00:15:07]} {[%emt 00:00:03]} e5 {[%clk 00:15:09]} 2. g3 {[%clk
00:15:11]} h5 {[%clk 00:15:10]} {[%emt 00:00:04]} 3. h4 {[%clk 00:15:16]} Nc6
{[%clk 00:15:11]} {[%emt 00:00:04]} 4. Bg2 {[%clk 00:15:16]} {[%emt 00:00:04]}
Bc5 {[%clk 00:15:14]} {[%emt 00:00:01]} 5. Nf3 {[%clk 00:15:19]} {[%emt
00:00:03]} d6 {[%clk 00:15:16]} {[%emt 00:00:04]} 6. Nc3 {[%clk 00:15:21]}
{[%emt 00:00:03]} a6 {[%clk 00:15:18]} {[%emt 00:00:03]} 7. d3 {[%clk
00:15:17]} {[%emt 00:00:09]} Bg4 {[%clk 00:15:12]} {[%emt 00:00:10]} 8. Nd5
{[%clk 00:14:54]} {[%emt 00:00:27]} Nge7 {[%clk 00:14:47]} {[%emt 00:00:31]} 9.
Bg5 {[%clk 00:14:07]} {[%emt 00:00:52]} f6 {[%clk 00:14:28]} {[%emt 00:00:24]}
10. Be3 {[%clk 00:14:11]} Qd7 {[%clk 00:14:22]} {[%emt 00:00:11]} 11. a3 {[%clk
00:13:52]} {[%emt 00:00:24]} Bxe3 {[%clk 00:12:45]} {[%emt 00:01:42]} 12. Nxe3
{[%clk 00:13:54]} {[%emt 00:00:02]} Be6 {[%clk 00:12:45]} {[%emt 00:00:05]} 13.
b4 {[%clk 00:13:29]} {[%emt 00:00:31]} d5 {[%clk 00:12:36]} {[%emt 00:00:14]}
14. cxd5 {[%clk 00:13:14]} {[%emt 00:00:21]} Nxd5 {[%clk 00:12:39]} {[%emt
00:00:01]} 15. Nxd5 {[%clk 00:13:06]} {[%emt 00:00:13]} Bxd5 {[%clk 00:12:43]}
{[%emt 00:00:02]} 16. Bh3 {[%clk 00:12:43]} {[%emt 00:00:27]} Be6 {[%clk
00:12:38]} {[%emt 00:00:11]} 17. Bxe6 {[%clk 00:12:41]} {[%emt 00:00:07]} Qxe6
{[%clk 00:12:42]} 18. O-O {[%clk 00:12:33]} {[%emt 00:00:13]} g5 {[%clk
00:12:33]} {[%emt 00:00:13]} 19. Rb1 {[%clk 00:12:22]} {[%emt 00:00:17]} gxh4
{[%clk 00:11:15]} {[%emt 00:01:23]} 20. Nxh4 {[%clk 00:12:24]} {[%emt
00:00:02]} O-O-O {[%clk 00:10:50]} {[%emt 00:00:29]} 21. b5 {[%clk 00:12:22]}
{[%emt 00:00:09]} axb5 {[%clk 00:10:49]} {[%emt 00:00:05]} 22. Rxb5 {[%clk
00:12:23]} {[%emt 00:00:04]} Rhg8 {[%clk 00:06:31]} {[%emt 00:04:23]} 23. Qa4
{[%clk 00:09:03]} {[%emt 00:03:25]} Rd4 {[%clk 00:05:45]} {[%emt 00:00:51]} 24.
Qa8+ {[%clk 00:07:34]} {[%emt 00:01:34]} Kd7 {[%clk 00:05:49]} 25. Qxb7 {[%clk
00:07:37]} {[%emt 00:00:02]} Rxh4 {[%clk 00:05:53]} 26. e4 {[%clk 00:06:41]}
{[%emt 00:01:02]} Qh3 {[%clk 00:01:09]} {[%emt 00:04:49]} 27. Rd5+ {[%clk
00:06:24]} {[%emt 00:00:22]} Ke7 {[%clk 00:01:11]} {[%emt 00:00:03]} 28. Qxc7+
{[%clk 00:06:14]} {[%emt 00:00:14]} Kf8 {[%clk 00:01:15]} {[%emt 00:00:02]} 29.
Qd6+ {[%clk 00:04:32]} {[%emt 00:01:46]} Ne7 {[%clk 00:00:52]} {[%emt
00:00:28]} 30. Qd8+ {[%clk 00:03:41]} {[%emt 00:00:56]} Kf7 {[%clk 00:00:51]}
{[%emt 00:00:06]} 31. Qxg8+ {[%clk 00:03:36]} {[%emt 00:00:10]} Kxg8 {[%clk
00:00:47]} {[%emt 00:00:10]} 32. Rd8+ {[%clk 00:03:39]} {[%emt 00:00:02]} Kf7
{[%clk 00:00:51]} 33. gxh4 {[%clk 00:03:39]} {[%emt 00:00:04]} Ng6 {[%clk
00:00:55]} 34. f3 {[%clk 00:03:10]} {[%emt 00:00:35]} Qg3+ {[%clk 00:00:54]}
{[%emt 00:00:05]} 35. Kh1 {[%clk 00:03:11]} {[%emt 00:00:04]} Nf4 {[%clk
00:00:57]} {[%emt 00:00:03]} 36. Re8 {[%clk 00:00:00]} Kxe8 {[%clk 00:00:57]}
0-1

[Event "Dalheimers Hus Rapid Open"]
[Site "Dalheimers Hus, Slottsskogsgatan 12, Gothenburg, Sweden"]
[Date "2024.04.14"]
[Round "5.9"]
[White "Hamark, Jesper"]
[Black "Borvander, Tom"]
[Result "0-1"]
[TimeControl "15 minutes + 5 seconds per move from move one."]
[WhiteFideId "1704338"]
[BlackFideId "1707388"]
[WhiteElo "2301"]
[BlackElo "2081"]

1. e4 {[%clk 00:15:07]} {[%emt 00:00:02]} e5 {[%clk 00:15:03]} {[%emt
00:00:08]} 2. Nf3 {[%clk 00:15:10]} {[%emt 00:00:02]} Nc6 {[%clk 00:15:06]}
{[%emt 00:00:02]} 3. d4 {[%clk 00:15:14]} {[%emt 00:00:02]} exd4 {[%clk
00:15:09]} {[%emt 00:00:02]} 4. Bc4 {[%clk 00:15:14]} {[%emt 00:00:05]} Nf6
{[%clk 00:15:08]} {[%emt 00:00:05]} 5. e5 {[%clk 00:15:12]} {[%emt 00:00:07]}
d5 {[%clk 00:15:11]} {[%emt 00:00:02]} 6. Bb5 {[%clk 00:15:15]} {[%emt
00:00:02]} Ne4 {[%clk 00:15:14]} {[%emt 00:00:02]} 7. Nxd4 {[%clk 00:15:18]}
{[%emt 00:00:02]} Bd7 {[%clk 00:15:17]} {[%emt 00:00:02]} 8. Bxc6 {[%clk
00:15:21]} {[%emt 00:00:02]} bxc6 {[%clk 00:15:21]} {[%emt 00:00:02]} 9. O-O
{[%clk 00:15:21]} {[%emt 00:00:04]} Bc5 {[%clk 00:15:23]} {[%emt 00:00:03]} 10.
f3 {[%clk 00:15:24]} {[%emt 00:00:03]} Ng5 {[%clk 00:15:25]} {[%emt 00:00:02]}
11. f4 {[%clk 00:15:26]} {[%emt 00:00:03]} Ne4 {[%clk 00:15:29]} {[%emt
00:00:01]} 12. Be3 {[%clk 00:15:29]} {[%emt 00:00:02]} Bb6 {[%clk 00:15:31]}
{[%emt 00:00:03]} 13. Nd2 {[%clk 00:15:29]} {[%emt 00:00:04]} Nxd2 {[%clk
00:15:18]} {[%emt 00:00:19]} 14. Qxd2 {[%clk 00:15:32]} c5 {[%clk 00:15:08]}
{[%emt 00:00:15]} 15. Nf3 {[%clk 00:15:34]} {[%emt 00:00:03]} Bf5 {[%clk
00:13:58]} {[%emt 00:01:16]} 16. Rad1 {[%clk 00:15:30]} {[%emt 00:00:08]} c6
{[%clk 00:13:53]} {[%emt 00:00:11]} 17. c4 {[%clk 00:14:05]} {[%emt 00:01:29]}
d4 {[%clk 00:12:58]} {[%emt 00:01:01]} 18. Bf2 {[%clk 00:14:08]} {[%emt
00:00:01]} Ba5 {[%clk 00:11:35]} {[%emt 00:01:29]} 19. Qc1 {[%clk 00:13:33]}
{[%emt 00:00:39]} h6 {[%clk 00:11:17]} {[%emt 00:00:23]} 20. h3 {[%clk
00:13:19]} {[%emt 00:00:19]} Qd7 {[%clk 00:10:56]} {[%emt 00:00:27]} 21. Bh4
{[%clk 00:11:13]} {[%emt 00:02:10]} Bd8 {[%clk 00:09:35]} {[%emt 00:01:26]} 22.
Bg3 {[%clk 00:09:30]} {[%emt 00:01:48]} a5 {[%clk 00:09:22]} {[%emt 00:00:18]}
23. Bh2 {[%clk 00:09:10]} {[%emt 00:00:25]} h5 {[%clk 00:08:59]} {[%emt
00:00:28]} 24. e6 {[%clk 00:08:27]} {[%emt 00:00:48]} Bxe6 {[%clk 00:08:05]}
{[%emt 00:01:00]} 25. Ne5 {[%clk 00:08:30]} {[%emt 00:00:02]} Qc8 {[%clk
00:07:58]} {[%emt 00:00:09]} 26. f5 {[%clk 00:08:11]} {[%emt 00:00:26]} Bd7
{[%clk 00:07:45]} {[%emt 00:00:18]} 27. Rde1 {[%clk 00:07:17]} {[%emt
00:00:59]} Kf8 {[%clk 00:06:49]} {[%emt 00:01:02]} 28. Qf4 {[%clk 00:06:35]}
{[%emt 00:00:47]} Bf6 {[%clk 00:06:31]} {[%emt 00:00:22]} 29. Nd3 {[%clk
00:05:06]} {[%emt 00:01:34]} Kg8 {[%clk 00:05:18]} {[%emt 00:01:18]} 30. Re2
{[%clk 00:04:45]} {[%emt 00:00:26]} h4 {[%clk 00:05:19]} {[%emt 00:00:04]} 31.
Nxc5 {[%clk 00:04:38]} {[%emt 00:00:12]} Rh5 {[%clk 00:05:11]} {[%emt
00:00:13]} 32. Ne4 {[%clk 00:03:08]} {[%emt 00:01:35]} Rxf5 {[%clk 00:04:47]}
{[%emt 00:00:29]} 33. Nxf6+ {[%clk 00:03:12]} Rxf6 {[%clk 00:04:41]} {[%emt
00:00:12]} 34. Qxh4 {[%clk 00:03:16]} Rxf1+ {[%clk 00:04:37]} {[%emt 00:00:08]}
35. Kxf1 {[%clk 00:03:20]} d3 {[%clk 00:04:34]} {[%emt 00:00:08]} 36. Rd2
{[%clk 00:03:18]} {[%emt 00:00:07]} Bf5 {[%clk 00:04:36]} {[%emt 00:00:03]} 37.
Bf4 {[%clk 00:02:51]} {[%emt 00:00:31]} Qe6 {[%clk 00:04:30]} {[%emt 00:00:12]}
38. b3 {[%clk 00:02:27]} {[%emt 00:00:30]} a4 {[%clk 00:04:24]} {[%emt
00:00:11]} 39. Kg1 {[%clk 00:02:31]} axb3 {[%clk 00:04:27]} {[%emt 00:00:01]}
40. axb3 {[%clk 00:02:36]} f6 {[%clk 00:04:11]} {[%emt 00:00:21]} 41. Qg3
{[%clk 00:02:33]} {[%emt 00:00:07]} Ra1+ {[%clk 00:03:53]} {[%emt 00:00:23]} 42.
Kh2 {[%clk 00:02:37]} Kf7 {[%clk 00:03:47]} {[%emt 00:00:11]} 43. Qf2 {[%clk
00:02:06]} {[%emt 00:00:36]} Re1 {[%clk 00:03:39]} {[%emt 00:00:12]} 44. b4
{[%clk 00:01:40]} {[%emt 00:00:32]} Rb1 {[%clk 00:03:02]} {[%emt 00:00:42]} 45.
Qc5 {[%clk 00:01:15]} {[%emt 00:00:30]} g5 {[%clk 00:02:31]} {[%emt 00:00:36]}
46. Bg3 {[%clk 00:01:07]} {[%emt 00:00:13]} Rc1 {[%clk 00:01:52]} {[%emt
00:00:44]} 47. b5 {[%clk 00:00:51]} {[%emt 00:00:21]} cxb5 {[%clk 00:01:52]}
{[%emt 00:00:05]} 48. Qa7+ {[%clk 00:00:52]} {[%emt 00:00:04]} Kg6 {[%clk
00:01:44]} {[%emt 00:00:13]} 49. cxb5 {[%clk 00:00:56]} {[%emt 00:00:02]} Rb1
{[%clk 00:01:45]} {[%emt 00:00:04]} 50. Qc5 {[%clk 00:00:47]} {[%emt 00:00:13]}
Qb3 {[%clk 00:01:25]} {[%emt 00:00:25]} 51. Qf8 {[%clk 00:00:29]} {[%emt
00:00:24]} Qf7 {[%clk 00:00:49]} {[%emt 00:00:41]} 52. Qc5 {[%clk 00:00:33]}
{[%emt 00:00:01]} Qb7 {[%clk 00:00:46]} {[%emt 00:00:07]} 53. Rf2 {[%clk
00:00:32]} {[%emt 00:00:06]} Rxb5 {[%clk 00:00:42]} {[%emt 00:00:10]} 54. Qf8
{[%clk 00:00:34]} {[%emt 00:00:02]} Qf7 {[%clk 00:00:43]} {[%emt 00:00:04]} 55.
Qd8 {[%clk 00:00:38]} {[%emt 00:00:02]} Rd5 {[%clk 00:00:45]} {[%emt 00:00:03]}
56. Qh8 {[%clk 00:00:42]} d2 {[%clk 00:00:45]} {[%emt 00:00:05]} 57. h4 {[%clk
00:00:46]} d1=Q {[%clk 00:00:43]} 0-1

[Event "Dalheimers Hus Rapid Open"]
[Site "Dalheimers Hus, Slottsskogsgatan 12, Gothenburg, Sweden"]
[Date "2024.04.14"]
[Round "5.10"]
[White "Svenn, Gosta"]
[Black "Kallen, Jonas"]
[Result "0-1"]
[TimeControl "15 minutes + 5 seconds per move from move one."]
[WhiteTitle "FM"]
[WhiteFideId "1700553"]
[BlackFideId "1712896"]
[WhiteElo "2280"]
[BlackElo "2021"]

1. d4 {[%clk 00:15:07]} {[%emt 00:00:02]} d5 {[%clk 00:15:08]} {[%emt
00:00:03]} 2. c4 {[%clk 00:15:10]} {[%emt 00:00:02]} c6 {[%clk 00:15:12]}
{[%emt 00:00:02]} 3. Nf3 {[%clk 00:15:10]} {[%emt 00:00:04]} Nf6 {[%clk
00:15:15]} {[%emt 00:00:02]} 4. e3 {[%clk 00:15:12]} {[%emt 00:00:02]} Bf5
{[%clk 00:15:11]} {[%emt 00:00:09]} 5. Nc3 {[%clk 00:15:14]} {[%emt 00:00:04]}
e6 {[%clk 00:15:14]} {[%emt 00:00:02]} 6. Nh4 {[%clk 00:14:39]} {[%emt
00:00:39]} Be4 {[%clk 00:15:04]} {[%emt 00:00:15]} 7. f3 {[%clk 00:13:59]}
{[%emt 00:00:46]} Bg6 {[%clk 00:15:08]} {[%emt 00:00:02]} 8. Qb3 {[%clk
00:13:19]} {[%emt 00:00:45]} Qb6 {[%clk 00:15:10]} {[%emt 00:00:03]} 9. Nxg6
{[%clk 00:12:37]} {[%emt 00:00:47]} hxg6 {[%clk 00:15:13]} {[%emt 00:00:02]} 10.
Bd2 {[%clk 00:11:03]} {[%emt 00:01:39]} Nbd7 {[%clk 00:13:33]} {[%emt
00:01:44]} 11. Be2 {[%clk 00:09:40]} {[%emt 00:01:27]} Bd6 {[%clk 00:11:16]}
{[%emt 00:02:23]} 12. f4 {[%clk 00:09:36]} {[%emt 00:00:10]} O-O {[%clk
00:10:42]} {[%emt 00:00:39]} 13. O-O-O {[%clk 00:09:09]} {[%emt 00:00:31]} Qxb3
{[%clk 00:10:10]} {[%emt 00:00:38]} 14. axb3 {[%clk 00:09:13]} {[%emt
00:00:02]} Bb4 {[%clk 00:09:01]} {[%emt 00:01:13]} 15. Bf3 {[%clk 00:06:52]}
{[%emt 00:02:26]} a5 {[%clk 00:08:38]} {[%emt 00:00:29]} 16. g4 {[%clk
00:06:47]} {[%emt 00:00:09]} Rfc8 {[%clk 00:06:39]} {[%emt 00:02:05]} 17. g5
{[%clk 00:06:40]} {[%emt 00:00:12]} Ne8 {[%clk 00:06:38]} {[%emt 00:00:05]} 18.
h4 {[%clk 00:06:32]} {[%emt 00:00:13]} b5 {[%clk 00:06:28]} {[%emt 00:00:16]}
19. c5 {[%clk 00:05:39]} {[%emt 00:00:58]} a4 {[%clk 00:05:58]} {[%emt
00:00:35]} 20. Kc2 {[%clk 00:04:50]} {[%emt 00:00:54]} Bxc3 {[%clk 00:04:56]}
{[%emt 00:01:07]} 21. Bxc3 {[%clk 00:04:31]} {[%emt 00:00:23]} a3 {[%clk
00:03:44]} {[%emt 00:01:17]} 22. bxa3 {[%clk 00:04:07]} {[%emt 00:00:30]} Rxa3
{[%clk 00:03:47]} {[%emt 00:00:02]} 23. h5 {[%clk 00:03:44]} {[%emt 00:00:28]}
gxh5 {[%clk 00:03:21]} {[%emt 00:00:31]} 24. Rh2 {[%emt 00:00:02]} h4 25. Rxh4
{[%clk 00:03:46]} g6 {[%clk 00:03:13]} {[%emt 00:00:14]} 26. Rh6 {[%clk
00:03:12]} {[%emt 00:00:39]} Nf8 {[%clk 00:02:35]} {[%emt 00:00:43]} 27. e4
{[%clk 00:02:18]} {[%emt 00:01:00]} Nc7 {[%clk 00:02:22]} {[%emt 00:00:17]} 28.
f5 {[%clk 00:01:48]} {[%emt 00:00:36]} gxf5 {[%clk 00:00:33]} {[%emt 00:01:54]}
29. exf5 {[%clk 00:01:47]} {[%emt 00:00:06]} Ra2+ {[%clk 00:00:34]} {[%emt
00:00:04]} 30. Bb2 {[%clk 00:01:39]} {[%emt 00:00:13]} b4 {[%clk 00:00:24]}
{[%emt 00:00:15]} 31. Rdh1 {[%clk 00:00:49]} {[%emt 00:00:54]} Nb5 {[%clk
00:00:12]} {[%emt 00:00:18]} 32. Kb1 {[%clk 00:00:37]} {[%emt 00:00:17]} Rca8
{[%clk 00:00:13]} {[%emt 00:00:05]} 33. Rh8+ {[%clk 00:00:09]} {[%emt
00:00:32]} Kg7 {[%clk 00:00:17]} 34. f6+ {[%clk 00:00:11]} {[%emt 00:00:04]}
Kg6 {[%clk 00:00:20]} {[%emt 00:00:01]} 35. Rg8+ {[%clk 00:00:09]} {[%emt
00:00:08]} Kf5 {[%clk 00:00:24]} {[%emt 00:00:01]} 0-1

[Event "Dalheimers Hus Rapid Open"]
[Site "Dalheimers Hus, Slottsskogsgatan 12, Gothenburg, Sweden"]
[Date "2024.04.14"]
[Round "5.11"]
[White "Johansson, Gunnar"]
[Black "Wellevit, Tomas"]
[Result "0-1"]
[TimeControl "15 minutes + 5 seconds per move from move one."]
[WhiteFideId "1700715"]
[BlackFideId "1731963"]
[WhiteElo "2186"]
[BlackElo "1978"]

1. e4 {[%clk 00:15:00]} {[%emt 00:00:07]} e6 {[%clk 00:15:08]} {[%emt
00:00:05]} 2. Nc3 {[%clk 00:14:46]} {[%emt 00:00:19]} c5 {[%clk 00:15:07]}
{[%emt 00:00:06]} 3. Nf3 {[%clk 00:14:44]} {[%emt 00:00:06]} Nc6 {[%clk
00:15:11]} {[%emt 00:00:02]} 4. d4 {[%clk 00:14:40]} {[%emt 00:00:09]} cxd4
{[%clk 00:15:14]} {[%emt 00:00:02]} 5. Nxd4 {[%clk 00:14:42]} {[%emt 00:00:02]}
a6 {[%clk 00:15:18]} {[%emt 00:00:02]} 6. Be3 {[%clk 00:14:07]} {[%emt
00:00:39]} Bb4 {[%clk 00:15:20]} {[%emt 00:00:04]} 7. Nxc6 {[%clk 00:12:53]}
{[%emt 00:01:19]} bxc6 {[%clk 00:15:24]} {[%emt 00:00:01]} 8. Qd4 {[%clk
00:12:50]} {[%emt 00:00:07]} Bf8 {[%clk 00:15:14]} {[%emt 00:00:16]} 9. Be2
{[%clk 00:11:40]} {[%emt 00:01:16]} Ne7 {[%clk 00:14:56]} {[%emt 00:00:22]} 10.
O-O {[%clk 00:09:40]} {[%emt 00:02:04]} Ng6 {[%clk 00:14:45]} {[%emt 00:00:18]}
11. Na4 {[%clk 00:09:18]} {[%emt 00:00:27]} Rb8 {[%clk 00:14:42]} {[%emt
00:00:08]} 12. c4 {[%clk 00:08:58]} {[%emt 00:00:24]} e5 {[%clk 00:14:27]}
{[%emt 00:00:20]} 13. Qd2 {[%clk 00:08:38]} {[%emt 00:00:25]} Bb4 {[%clk
00:14:26]} {[%emt 00:00:06]} 14. Qc2 {[%clk 00:08:29]} {[%emt 00:00:12]} O-O
{[%clk 00:14:13]} {[%emt 00:00:20]} 15. g3 {[%clk 00:08:30]} {[%emt 00:00:04]}
d5 {[%clk 00:11:44]} {[%emt 00:02:34]} 16. Rad1 {[%clk 00:07:40]} {[%emt
00:00:55]} d4 {[%clk 00:11:45]} {[%emt 00:00:05]} 17. c5 {[%clk 00:07:35]}
{[%emt 00:00:09]} Qe7 {[%clk 00:10:54]} {[%emt 00:00:56]} 18. Bc1 {[%clk
00:07:33]} {[%emt 00:00:06]} Bh3 {[%clk 00:10:46]} {[%emt 00:00:13]} 19. a3
{[%clk 00:07:17]} {[%emt 00:00:21]} Bxf1 {[%clk 00:10:46]} {[%emt 00:00:04]} 20.
Bxf1 {[%clk 00:07:21]} {[%emt 00:00:02]} Ba5 {[%clk 00:10:49]} {[%emt
00:00:03]} 21. Bxa6 {[%clk 00:07:07]} {[%emt 00:00:17]} h5 {[%clk 00:09:08]}
{[%emt 00:01:47]} 22. b4 {[%clk 00:06:53]} {[%emt 00:00:19]} Bc7 {[%clk
00:09:03]} {[%emt 00:00:10]} 23. Bc4 {[%clk 00:06:31]} {[%emt 00:00:26]} h4
{[%clk 00:09:06]} {[%emt 00:00:03]} 24. Qe2 {[%clk 00:06:19]} {[%emt 00:00:17]}
Rfd8 {[%clk 00:06:31]} {[%emt 00:02:39]} 25. Qh5 {[%clk 00:06:13]} {[%emt
00:00:11]} Kf8 {[%clk 00:05:51]} {[%emt 00:00:46]} 26. Nb2 {[%clk 00:06:15]}
{[%emt 00:00:04]} hxg3 {[%clk 00:05:48]} {[%emt 00:00:07]} 27. hxg3 {[%clk
00:06:16]} {[%emt 00:00:04]} Ra8 {[%emt 00:01:06]} 28. Nd3 {[%clk 00:06:18]}
Qe8 {[%clk 00:04:33]} {[%emt 00:00:21]} 29. Bg5 {[%clk 00:05:23]} {[%emt
00:01:00]} Rxa3 {[%clk 00:04:37]} {[%emt 00:00:02]} 30. Kg2 {[%clk 00:04:48]}
{[%emt 00:00:38]} Rc3 {[%clk 00:04:15]} {[%emt 00:00:28]} 31. Rh1 {[%clk
00:04:52]} {[%emt 00:00:01]} f6 {[%clk 00:03:20]} {[%emt 00:01:00]} 32. Nxe5
{[%clk 00:03:47]} {[%emt 00:01:10]} Bxe5 {[%emt 00:00:35]} 0-1

[Event "Dalheimers Hus Rapid Open"]
[Site "Dalheimers Hus, Slottsskogsgatan 12, Gothenburg, Sweden"]
[Date "2024.04.14"]
[Round "6.1"]
[White "Svensson, Bengt"]
[Black "Johansson, Linus"]
[Result "1/2-1/2"]
[TimeControl "15 minutes + 5 seconds per move from move one."]
[WhiteTitle "IM"]
[BlackTitle "IM"]
[WhiteFideId "1700200"]
[BlackFideId "1711113"]
[WhiteElo "2281"]
[BlackElo "2427"]

1. e4 {[%emt 00:00:03]} c5 {[%clk 00:15:09]} 2. Nf3 {[%clk 00:15:09]} {[%emt
00:00:03]} d6 {[%clk 00:15:13]} {[%emt 00:00:02]} 3. d4 {[%clk 00:15:10]}
{[%emt 00:00:04]} cxd4 {[%clk 00:15:17]} 4. Nxd4 {[%clk 00:15:14]} {[%emt
00:00:02]} Nf6 {[%clk 00:15:21]} 5. Nc3 {[%clk 00:15:17]} {[%emt 00:00:02]} a6
{[%clk 00:15:25]} {[%emt 00:00:01]} 6. Bg5 {[%clk 00:14:55]} {[%emt 00:00:27]}
e6 {[%clk 00:15:28]} {[%emt 00:00:01]} 7. f4 {[%emt 00:00:03]} Nbd7 {[%clk
00:15:31]} {[%emt 00:00:01]} 8. Qf3 {[%clk 00:15:00]} {[%emt 00:00:04]} Qc7
{[%clk 00:15:31]} {[%emt 00:00:05]} 9. O-O-O {[%clk 00:15:00]} {[%emt
00:00:05]} Be7 {[%clk 00:15:35]} 10. g4 {[%clk 00:14:27]} {[%emt 00:00:37]} h6
{[%clk 00:15:38]} {[%emt 00:00:02]} 11. Bxf6 {[%clk 00:13:50]} {[%emt
00:00:42]} Bxf6 {[%clk 00:15:41]} {[%emt 00:00:02]} 12. h4 {[%clk 00:13:08]}
{[%emt 00:00:48]} Nb6 {[%clk 00:15:44]} {[%emt 00:00:02]} 13. g5 {[%clk
00:12:47]} {[%emt 00:00:25]} Bxd4 {[%clk 00:15:48]} {[%emt 00:00:01]} 14. Rxd4
{[%clk 00:12:50]} {[%emt 00:00:02]} Bd7 {[%clk 00:15:42]} {[%emt 00:00:11]} 15.
gxh6 {[%clk 00:09:50]} {[%emt 00:03:05]} Rxh6 {[%clk 00:15:29]} {[%emt
00:00:19]} 16. Be2 {[%emt 00:02:31]} Qc5 {[%clk 00:14:10]} 17. Rd2 {[%clk
00:08:06]} {[%emt 00:00:47]} Na4 {[%clk 00:14:01]} {[%emt 00:00:14]} 18. Nxa4
{[%clk 00:08:01]} {[%emt 00:00:10]} Bxa4 {[%clk 00:14:03]} {[%emt 00:00:03]} 19.
h5 {[%clk 00:06:58]} {[%emt 00:01:07]} Bb5 {[%clk 00:13:53]} {[%emt 00:00:15]}
20. a3 {[%clk 00:05:59]} {[%emt 00:01:05]} Bxe2 {[%clk 00:13:42]} {[%emt
00:00:16]} 21. Rxe2 {[%clk 00:05:58]} {[%emt 00:00:07]} O-O-O {[%clk 00:13:35]}
{[%emt 00:00:11]} 22. Re3 {[%clk 00:05:20]} {[%emt 00:00:43]} Kb8 {[%clk
00:13:26]} {[%emt 00:00:13]} 23. Rc3 {[%clk 00:05:16]} {[%emt 00:00:10]} Qb5
{[%clk 00:13:11]} {[%emt 00:00:20]} 24. Rb3 {[%clk 00:05:01]} {[%emt 00:00:20]}
Qc6 {[%clk 00:12:54]} {[%emt 00:00:22]} 25. Rc3 {[%clk 00:04:56]} {[%emt
00:00:10]} Qd7 {[%clk 00:12:58]} 26. Qg2 {[%clk 00:04:45]} {[%emt 00:00:16]} g6
{[%clk 00:12:18]} {[%emt 00:00:45]} 27. hxg6 {[%clk 00:04:42]} {[%emt
00:00:08]} Rxg6 {[%clk 00:12:21]} {[%emt 00:00:01]} 28. Qf2 {[%clk 00:04:34]}
{[%emt 00:00:13]} Rc8 {[%clk 00:10:47]} {[%emt 00:01:39]} 29. Rxc8+ {[%clk
00:04:30]} {[%emt 00:00:10]} Qxc8 {[%clk 00:10:50]} {[%emt 00:00:01]} 30. Qb6
{[%clk 00:04:05]} {[%emt 00:00:30]} d5 {[%clk 00:07:30]} {[%emt 00:03:26]} 31.
exd5 {[%clk 00:03:18]} {[%emt 00:00:51]} exd5 {[%clk 00:07:31]} {[%emt
00:00:05]} 32. Qd4 {[%clk 00:03:08]} {[%emt 00:00:14]} Rd6 {[%clk 00:07:00]}
{[%emt 00:00:36]} 33. Rh8 {[%clk 00:02:26]} {[%emt 00:00:48]} Rd8 {[%clk
00:07:02]} {[%emt 00:00:02]} 34. Rxd8 {[%clk 00:02:28]} {[%emt 00:00:03]} Qxd8
{[%clk 00:07:06]} {[%emt 00:00:02]} 35. Kb1 {[%clk 00:02:08]} {[%emt 00:00:25]}
Qc7 {[%clk 00:06:19]} {[%emt 00:00:52]} 36. Qh8+ {[%clk 00:01:48]} {[%emt
00:00:25]} Ka7 {[%clk 00:05:52]} {[%emt 00:00:31]} 37. Qd4+ {[%clk 00:01:45]}
{[%emt 00:00:08]} Kb8 {[%clk 00:05:55]} {[%emt 00:00:02]} 38. Qh8+ {[%clk
00:01:49]} {[%emt 00:00:01]} 1/2-1/2